[Event "St Kilda East and Caulfield Chess Club RAPID Term 3, 2025"]
[Site "st kilda east, Australia"]
[Date "2025.07.21"]
[Round "2.5"]
[White "Yong, Leonard"]
[Black "Wang, Noah"]
[Result "0-1"]
[TimeControl "13 minutes per game plus 2 seconds from move 1"]
[WhiteElo "368"]
[BlackElo "936"]

1. e4 {[%clk 00:13:01]} c5 {[%clk 00:13:02]} 2. Nf3 {[%clk 00:12:59]} {[%emt
00:00:02]} d6 {[%clk 00:13:03]} 3. Nc3 {[%clk 00:12:55]} {[%emt 00:00:08]} Nf6
{[%clk 00:13:00]} {[%emt 00:00:05]} 4. Bb5+ {[%clk 00:12:53]} {[%emt 00:00:04]}
Nbd7 {[%clk 00:12:55]} {[%emt 00:00:07]} 5. O-O {[%clk 00:12:46]} {[%emt
00:00:07]} a6 {[%clk 00:12:51]} {[%emt 00:00:07]} 6. Bxd7+ {[%clk 00:12:46]}
{[%emt 00:00:02]} Bxd7 {[%clk 00:12:52]} 7. d3 {[%clk 00:12:44]} {[%emt
00:00:04]} e6 {[%clk 00:12:53]} {[%emt 00:00:02]} 8. Bg5 {[%clk 00:12:41]}
{[%emt 00:00:05]} Be7 {[%clk 00:12:53]} {[%emt 00:00:01]} 9. Re1 {[%clk
00:12:27]} {[%emt 00:00:15]} O-O {[%clk 00:12:52]} {[%emt 00:00:04]} 10. Qd2
{[%clk 00:12:19]} {[%emt 00:00:07]} Rc8 {[%clk 00:12:28]} {[%emt 00:00:30]} 11.
e5 {[%clk 00:12:15]} {[%emt 00:00:06]} dxe5 {[%clk 00:12:04]} {[%emt 00:00:25]}
12. Nxe5 {[%clk 00:12:10]} {[%emt 00:00:06]} h6 {[%clk 00:11:32]} {[%emt
00:00:35]} 13. Bf4 {[%clk 00:12:01]} {[%emt 00:00:11]} Nh7 {[%clk 00:09:40]}
{[%emt 00:01:53]} 14. Re4 {[%clk 00:10:50]} {[%emt 00:01:13]} Bg5 {[%clk
00:09:14]} {[%emt 00:00:28]} 15. Rae1 {[%clk 00:10:07]} {[%emt 00:00:45]} Nf6
{[%clk 00:07:06]} {[%emt 00:02:10]} 16. R4e2 {[%clk 00:09:04]} {[%emt
00:01:05]} Nh7 {[%clk 00:05:20]} {[%emt 00:01:48]} 17. Ne4 {[%clk 00:08:44]}
{[%emt 00:00:22]} Bxf4 {[%clk 00:04:43]} {[%emt 00:00:38]} 18. Qxf4 {[%clk
00:08:37]} {[%emt 00:00:10]} Bc6 {[%clk 00:03:51]} {[%emt 00:00:54]} 19. Nxc5
{[%clk 00:07:20]} {[%emt 00:01:19]} Qd5 {[%clk 00:03:50]} {[%emt 00:00:04]} 20.
d4 {[%clk 00:05:34]} {[%emt 00:01:47]} Qxg2# {[%clk 00:03:49]} {[%emt
00:00:03]} 0-1

[Event "St Kilda East and Caulfield Chess Club RAPID Term 3, 2025"]
[Site "st kilda east, Australia"]
[Date "2025.07.21"]
[Round "2.1"]
[White "Rosenberger, Oliver"]
[Black "Nakada, Kazu"]
[Result "1-0"]
[TimeControl "13 minutes per game plus 2 seconds from move 1"]
[WhiteElo "1675"]
[BlackElo "802"]

1. d4 {[%clk 00:13:01]} d5 {[%clk 00:13:01]} {[%emt 00:00:02]} 2. c4 {[%clk
00:13:02]} {[%emt 00:00:01]} c6 {[%clk 00:13:02]} 3. Nc3 {[%clk 00:13:02]}
{[%emt 00:00:01]} Nf6 {[%clk 00:13:03]} {[%emt 00:00:01]} 4. e3 {[%clk
00:13:03]} {[%emt 00:00:01]} Bf5 {[%clk 00:13:04]} {[%emt 00:00:01]} 5. cxd5
{[%clk 00:13:03]} {[%emt 00:00:02]} cxd5 {[%clk 00:13:04]} {[%emt 00:00:02]} 6.
Qb3 {[%clk 00:13:04]} b6 {[%clk 00:12:27]} {[%emt 00:00:39]} 7. Nf3 {[%clk
00:12:04]} {[%emt 00:01:02]} e6 {[%clk 00:12:16]} {[%emt 00:00:14]} 8. Bb5+
{[%clk 00:12:03]} {[%emt 00:00:02]} Nbd7 {[%clk 00:12:07]} {[%emt 00:00:08]} 9.
Ne5 {[%clk 00:12:02]} {[%emt 00:00:07]} Bd6 {[%clk 00:12:06]} {[%emt 00:00:03]}
10. g4 {[%clk 00:11:01]} {[%emt 00:01:03]} Bxe5 {[%clk 00:11:48]} {[%emt
00:00:19]} 11. gxf5 {[%clk 00:10:59]} {[%emt 00:00:03]} Bd6 {[%clk 00:11:31]}
{[%emt 00:00:19]} 12. e4 {[%clk 00:10:24]} {[%emt 00:00:38]} dxe4 {[%clk
00:09:16]} {[%emt 00:02:18]} 13. fxe6 {[%clk 00:10:18]} {[%emt 00:00:08]} fxe6
{[%clk 00:09:14]} {[%emt 00:00:04]} 14. Bg5 {[%clk 00:08:25]} {[%emt 00:01:53]}
O-O {[%clk 00:09:04]} {[%emt 00:00:13]} 15. Qxe6+ {[%clk 00:08:22]} {[%emt
00:00:05]} Rf7 {[%clk 00:08:56]} {[%emt 00:00:08]} 16. Qxd6 {[%clk 00:08:21]}
{[%emt 00:00:06]} a6 {[%clk 00:08:46]} {[%emt 00:00:11]} 17. Bc4 {[%clk
00:08:20]} {[%emt 00:00:03]} b5 {[%clk 00:08:24]} {[%emt 00:00:24]} 18. Bxf7+
{[%clk 00:08:00]} {[%emt 00:00:21]} Kxf7 {[%clk 00:08:24]} {[%emt 00:00:02]} 19.
Nd5 {[%clk 00:07:37]} {[%emt 00:00:25]} h6 {[%clk 00:08:15]} {[%emt 00:00:12]}
20. Bxf6 {[%clk 00:07:34]} {[%emt 00:00:05]} gxf6 {[%clk 00:08:13]} {[%emt
00:00:04]} 21. Rc1 {[%clk 00:07:27]} {[%emt 00:00:09]} Rc8 {[%clk 00:08:04]}
{[%emt 00:00:11]} 22. Rxc8 {[%clk 00:07:24]} {[%emt 00:00:04]} Qxc8 {[%clk
00:08:04]} {[%emt 00:00:02]} 23. Qe7+ {[%emt 00:00:07]} Kg6 {[%clk 00:07:56]}
{[%emt 00:00:05]} 24. Rg1+ {[%clk 00:07:15]} {[%emt 00:00:12]} Kf5 {[%clk
00:07:56]} {[%emt 00:00:02]} 25. Ne3+ {[%clk 00:07:14]} {[%emt 00:00:03]} Kf4
{[%clk 00:07:51]} {[%emt 00:00:07]} 26. Qd6+ {[%clk 00:07:04]} {[%emt
00:00:11]} Ne5 {[%clk 00:07:47]} {[%emt 00:00:06]} 27. Qxf6+ {[%clk 00:07:02]}
{[%emt 00:00:04]} Qf5 {[%clk 00:07:44]} {[%emt 00:00:04]} 28. Qxf5# {[%clk
00:07:02]} {[%emt 00:00:03]} 1-0

[Event "St Kilda East and Caulfield Chess Club RAPID Term 3, 2025"]
[Site "st kilda east, Australia"]
[Date "2025.07.21"]
[Round "3.4"]
[White "Longe, Mathieu"]
[Black "Mauncell-Paea, Hyrem"]
[Result "1-0"]
[TimeControl "13 minutes per game plus 2 seconds from move 1"]
[WhiteElo "699"]
[BlackElo "815"]

1. e4 {[%clk 00:12:49]} {[%emt 00:00:11]} e5 {[%clk 00:12:55]} {[%emt
00:00:07]} 2. f4 {[%clk 00:12:49]} {[%emt 00:00:03]} Nc6 {[%clk 00:12:51]}
{[%emt 00:00:06]} 3. Nf3 {[%clk 00:12:48]} {[%emt 00:00:02]} d6 {[%clk
00:12:50]} {[%emt 00:00:02]} 4. Bb5 {[%clk 00:12:49]} {[%emt 00:00:02]} Bg4
{[%clk 00:12:32]} {[%emt 00:00:20]} 5. h3 {[%clk 00:12:42]} {[%emt 00:00:09]}
Qh4+ {[%clk 00:12:08]} {[%emt 00:00:26]} 6. Nxh4 {[%clk 00:11:49]} {[%emt
00:00:55]} Bxd1 {[%clk 00:12:06]} {[%emt 00:00:04]} 7. Kxd1 {[%clk 00:11:47]}
{[%emt 00:00:05]} O-O-O {[%clk 00:11:59]} {[%emt 00:00:09]} 8. Bxc6 {[%clk
00:11:47]} {[%emt 00:00:02]} bxc6 {[%clk 00:11:58]} {[%emt 00:00:03]} 9. fxe5
{[%clk 00:11:35]} {[%emt 00:00:13]} dxe5 {[%clk 00:11:57]} {[%emt 00:00:04]} 10.
d3 {[%clk 00:11:34]} {[%emt 00:00:03]} f6 {[%clk 00:11:56]} {[%emt 00:00:03]}
11. Nc3 {[%clk 00:11:26]} {[%emt 00:00:11]} Bc5 {[%clk 00:11:34]} {[%emt
00:00:23]} 12. Nf5 {[%clk 00:11:21]} {[%emt 00:00:07]} Rd7 {[%clk 00:11:28]}
{[%emt 00:00:08]} 13. Be3 {[%clk 00:10:43]} {[%emt 00:00:40]} Bb6 {[%clk
00:11:10]} {[%emt 00:00:20]} 14. a4 {[%clk 00:10:42]} {[%emt 00:00:04]} g6
{[%clk 00:11:05]} {[%emt 00:00:07]} 15. Bxb6 {[%clk 00:10:37]} {[%emt
00:00:07]} cxb6 {[%clk 00:11:04]} {[%emt 00:00:03]} 16. Ne3 {[%clk 00:10:35]}
{[%emt 00:00:04]} Ne7 {[%clk 00:10:56]} {[%emt 00:00:09]} 17. b4 {[%clk
00:10:30]} {[%emt 00:00:07]} f5 {[%clk 00:10:43]} {[%emt 00:00:15]} 18. g3
{[%clk 00:10:26]} {[%emt 00:00:07]} f4 {[%clk 00:10:31]} {[%emt 00:00:13]} 19.
gxf4 {[%clk 00:10:14]} {[%emt 00:00:13]} exf4 {[%clk 00:10:30]} {[%emt
00:00:03]} 20. Ng4 {[%clk 00:10:13]} {[%emt 00:00:04]} Rf8 {[%clk 00:10:22]}
{[%emt 00:00:09]} 21. Rf1 {[%clk 00:09:32]} {[%emt 00:00:44]} g5 {[%clk
00:09:58]} {[%emt 00:00:25]} 22. b5 {[%clk 00:09:28]} {[%emt 00:00:07]} c5
{[%clk 00:09:22]} {[%emt 00:00:37]} 23. Ke2 {[%clk 00:09:18]} {[%emt 00:00:12]}
Re8 {[%emt 00:00:57]} 24. a5 {[%emt 00:00:04]} Kb7 {[%clk 00:07:55]} {[%emt
00:00:28]} 25. axb6 {[%clk 00:08:49]} {[%emt 00:00:32]} axb6 {[%clk 00:07:47]}
{[%emt 00:00:10]} 26. Nf6 {[%clk 00:08:33]} {[%emt 00:00:18]} Rdd8 {[%clk
00:06:50]} {[%emt 00:00:59]} 27. Nxe8 {[%clk 00:08:32]} {[%emt 00:00:03]} Rxe8
{[%clk 00:06:48]} {[%emt 00:00:03]} 28. Ra2 {[%clk 00:07:51]} {[%emt 00:00:44]}
Nf5 {[%clk 00:06:16]} {[%emt 00:00:34]} 29. Rfa1 {[%clk 00:07:30]} {[%emt
00:00:23]} Nd4+ {[%clk 00:05:14]} {[%emt 00:01:03]} 30. Kf2 {[%clk 00:07:11]}
{[%emt 00:00:22]} Rb8 {[%clk 00:03:34]} {[%emt 00:01:42]} 31. Ra7+ {[%clk
00:06:50]} {[%emt 00:00:23]} Kc8 {[%clk 00:03:34]} {[%emt 00:00:02]} 32. R1a2
{[%clk 00:05:35]} {[%emt 00:01:18]} h5 {[%clk 00:02:52]} {[%emt 00:00:43]} 33.
Nd5 {[%clk 00:05:32]} {[%emt 00:00:05]} g4 {[%clk 00:02:32]} {[%emt 00:00:22]}
34. hxg4 {[%clk 00:05:10]} {[%emt 00:00:25]} hxg4 {[%clk 00:02:22]} {[%emt
00:00:11]} 35. Nxf4 {[%clk 00:05:01]} {[%emt 00:00:12]} Nxb5 {[%clk 00:02:08]}
{[%emt 00:00:15]} 36. Ra8 {[%clk 00:04:47]} {[%emt 00:00:17]} Nd4 {[%clk
00:01:35]} {[%emt 00:00:35]} 37. Rxb8+ {[%emt 00:00:24]} Kxb8 {[%clk 00:01:18]}
38. Nd5 {[%clk 00:04:11]} {[%emt 00:00:35]} Kb7 {[%clk 00:01:06]} {[%emt
00:00:14]} 39. Kg3 {[%clk 00:03:38]} {[%emt 00:00:36]} Nc6 {[%clk 00:00:35]}
{[%emt 00:00:32]} 40. Rb2 {[%clk 00:03:21]} {[%emt 00:00:19]} Nb4 {[%clk
00:00:09]} {[%emt 00:00:27]} 41. Nxb4 {[%clk 00:03:21]} {[%emt 00:00:02]} cxb4
{[%clk 00:00:07]} {[%emt 00:00:04]} 42. Rxb4 {[%clk 00:03:22]} {[%emt
00:00:02]} Kc6 {[%emt 00:00:02]} 43. Kxg4 {[%clk 00:03:22]} {[%emt 00:00:02]}
1-0

[Event "St Kilda East and Caulfield Chess Club RAPID Term 3, 2025"]
[Site "st kilda east, Australia"]
[Date "2025.07.21"]
[Round "3.3"]
[White "Karboulahanos, Kris"]
[Black "Lopata, Felix"]
[Result "1-0"]
[TimeControl "13 minutes per game plus 2 seconds from move 1"]
[WhiteElo "1147"]
[BlackElo "1088"]

1. e4 {[%clk 00:13:01]} e6 {[%clk 00:13:00]} {[%emt 00:00:03]} 2. Nc3 {[%clk
00:12:57]} {[%emt 00:00:05]} d5 {[%clk 00:13:01]} {[%emt 00:00:01]} 3. exd5
{[%clk 00:12:52]} {[%emt 00:00:07]} exd5 {[%clk 00:13:02]} {[%emt 00:00:01]} 4.
d4 {[%clk 00:12:53]} {[%emt 00:00:02]} Nf6 {[%clk 00:12:57]} {[%emt 00:00:07]}
5. Be2 {[%clk 00:12:52]} {[%emt 00:00:03]} Bd6 {[%clk 00:12:56]} {[%emt
00:00:02]} 6. Nf3 {[%clk 00:12:52]} {[%emt 00:00:02]} O-O {[%clk 00:12:56]}
{[%emt 00:00:02]} 7. Be3 {[%clk 00:12:53]} {[%emt 00:00:01]} c6 {[%clk
00:12:40]} {[%emt 00:00:19]} 8. O-O {[%clk 00:12:49]} {[%emt 00:00:05]} Bg4
{[%clk 00:12:35]} {[%emt 00:00:07]} 9. h3 {[%clk 00:12:44]} {[%emt 00:00:06]}
Bh5 {[%clk 00:12:34]} {[%emt 00:00:03]} 10. Bg5 {[%clk 00:12:45]} {[%emt
00:00:01]} Nbd7 {[%clk 00:12:26]} {[%emt 00:00:10]} 11. Ne5 {[%clk 00:12:37]}
{[%emt 00:00:10]} Bxe2 {[%clk 00:11:32]} {[%emt 00:00:56]} 12. Qxe2 {[%clk
00:12:37]} Be7 {[%clk 00:11:33]} {[%emt 00:00:02]} 13. Nxd7 {[%clk 00:12:25]}
{[%emt 00:00:13]} Qxd7 {[%clk 00:11:33]} {[%emt 00:00:03]} 14. f4 {[%clk
00:12:23]} {[%emt 00:00:04]} h6 {[%clk 00:11:29]} {[%emt 00:00:06]} 15. Bh4
{[%clk 00:12:19]} {[%emt 00:00:06]} Rfe8 {[%clk 00:11:12]} {[%emt 00:00:19]} 16.
Qf3 {[%clk 00:12:19]} {[%emt 00:00:01]} Rad8 {[%clk 00:10:38]} {[%emt
00:00:37]} 17. Rae1 {[%clk 00:12:14]} {[%emt 00:00:07]} Qf5 {[%clk 00:10:23]}
{[%emt 00:00:18]} 18. Re5 {[%clk 00:11:22]} {[%emt 00:00:53]} Qxc2 {[%clk
00:10:09]} {[%emt 00:00:16]} 19. Rfe1 {[%clk 00:11:23]} {[%emt 00:00:01]} Qg6
{[%clk 00:09:35]} {[%emt 00:00:35]} 20. Rxe7 {[%clk 00:11:11]} {[%emt
00:00:14]} Rxe7 {[%clk 00:09:09]} {[%emt 00:00:29]} 21. Rxe7 {[%clk 00:11:11]}
{[%emt 00:00:01]} Rb8 {[%clk 00:08:31]} {[%emt 00:00:41]} 22. f5 {[%clk
00:10:45]} {[%emt 00:00:27]} Qh7 {[%clk 00:08:09]} {[%emt 00:00:24]} 23. Qg3
{[%clk 00:10:36]} {[%emt 00:00:11]} Kf8 {[%clk 00:07:10]} {[%emt 00:01:00]} 24.
Qd6 {[%clk 00:09:51]} {[%emt 00:00:48]} Ra8 {[%clk 00:04:52]} {[%emt 00:02:21]}
25. Bxf6 {[%clk 00:09:29]} {[%emt 00:00:22]} gxf6 {[%clk 00:04:47]} {[%emt
00:00:08]} 26. Qxf6 {[%clk 00:09:28]} {[%emt 00:00:04]} Re8 {[%clk 00:04:22]}
{[%emt 00:00:27]} 27. Rxb7 {[%clk 00:09:24]} {[%emt 00:00:05]} Re1+ {[%clk
00:04:19]} {[%emt 00:00:06]} 28. Kh2 {[%clk 00:09:07]} {[%emt 00:00:18]} Re8
{[%clk 00:03:43]} {[%emt 00:00:38]} 29. Na4 {[%clk 00:09:01]} {[%emt 00:00:08]}
h5 {[%clk 00:03:26]} {[%emt 00:00:19]} 30. Nc5 {[%clk 00:08:58]} {[%emt
00:00:05]} h4 {[%clk 00:03:06]} {[%emt 00:00:22]} 31. Ne6+ {[%clk 00:08:31]}
{[%emt 00:00:29]} Kg8 {[%clk 00:02:50]} {[%emt 00:00:18]} 32. Ng5 {[%clk
00:08:23]} {[%emt 00:00:09]} Qh5 {[%clk 00:02:09]} {[%emt 00:00:43]} 33. Nxf7
{[%clk 00:08:07]} {[%emt 00:00:18]} Re2 {[%clk 00:01:36]} {[%emt 00:00:35]} 34.
Nh6+ {[%clk 00:07:59]} {[%emt 00:00:10]} 1-0

[Event "St Kilda East and Caulfield Chess Club RAPID Term 3, 2025"]
[Site "st kilda east, Australia"]
[Date "2025.07.21"]
[Round "3.1"]
[White "Wang, Noah"]
[Black "Rosenberger, Oliver"]
[Result "0-1"]
[TimeControl "13 minutes per game plus 2 seconds from move 1"]
[WhiteElo "936"]
[BlackElo "1675"]

1. e4 {[%clk 00:13:01]} {[%emt 00:10:26]} d6 {[%clk 00:12:59]} {[%emt
00:00:02]} 2. d4 {[%clk 00:12:59]} {[%emt 00:00:05]} Nf6 {[%clk 00:12:59]}
{[%emt 00:00:02]} 3. Nc3 {[%clk 00:12:52]} {[%emt 00:00:09]} c6 {[%clk
00:12:57]} {[%emt 00:00:05]} 4. Nf3 {[%clk 00:12:48]} {[%emt 00:00:06]} Bg4
{[%clk 00:12:57]} {[%emt 00:00:02]} 5. Be2 {[%clk 00:12:45]} {[%emt 00:00:04]}
e6 {[%clk 00:12:57]} {[%emt 00:00:02]} 6. O-O {[%clk 00:12:40]} {[%emt
00:00:07]} Be7 {[%clk 00:12:57]} {[%emt 00:00:02]} 7. Be3 {[%clk 00:12:18]}
{[%emt 00:00:24]} O-O {[%clk 00:12:51]} {[%emt 00:00:08]} 8. h3 {[%clk
00:12:15]} {[%emt 00:00:05]} Bh5 {[%clk 00:12:51]} {[%emt 00:00:02]} 9. Qd2
{[%clk 00:12:08]} {[%emt 00:00:10]} d5 {[%clk 00:12:50]} {[%emt 00:00:03]} 10.
e5 {[%clk 00:11:35]} {[%emt 00:00:36]} Nfd7 {[%clk 00:12:50]} {[%emt 00:00:02]}
11. Nh2 {[%clk 00:10:23]} {[%emt 00:01:13]} Bg6 {[%clk 00:12:45]} {[%emt
00:00:07]} 12. Bd3 {[%clk 00:10:19]} {[%emt 00:00:06]} c5 {[%clk 00:12:44]}
{[%emt 00:00:02]} 13. Bxg6 {[%clk 00:10:01]} {[%emt 00:00:20]} hxg6 {[%clk
00:12:43]} {[%emt 00:00:04]} 14. Nf3 {[%clk 00:09:56]} {[%emt 00:00:07]} cxd4
{[%clk 00:12:38]} {[%emt 00:00:06]} 15. Bxd4 {[%clk 00:09:35]} {[%emt
00:00:22]} Nc6 {[%clk 00:12:39]} {[%emt 00:00:03]} 16. Rfe1 {[%clk 00:09:06]}
{[%emt 00:00:31]} Rb8 {[%clk 00:12:06]} {[%emt 00:00:35]} 17. a3 {[%clk
00:07:42]} {[%emt 00:01:26]} b5 {[%clk 00:12:00]} {[%emt 00:00:08]} 18. b4
{[%clk 00:07:40]} {[%emt 00:00:04]} a5 {[%clk 00:11:43]} {[%emt 00:00:18]} 19.
Na2 {[%clk 00:07:24]} {[%emt 00:00:18]} Nb6 {[%clk 00:11:26]} {[%emt 00:00:19]}
20. c3 {[%clk 00:06:45]} {[%emt 00:00:42]} Nc4 {[%clk 00:11:21]} {[%emt
00:00:07]} 21. Qc1 {[%clk 00:06:38]} {[%emt 00:00:06]} Qc7 {[%clk 00:10:36]}
{[%emt 00:00:50]} 22. Nd2 {[%clk 00:06:20]} {[%emt 00:00:21]} Nxd4 {[%clk
00:10:14]} {[%emt 00:00:23]} 23. cxd4 {[%clk 00:06:13]} {[%emt 00:00:09]} Bg5
{[%clk 00:10:13]} {[%emt 00:00:03]} 24. Rd1 {[%clk 00:05:29]} {[%emt 00:00:47]}
Qa7 {[%clk 00:10:11]} {[%emt 00:00:03]} 25. Qc3 {[%clk 00:04:38]} {[%emt
00:00:54]} Nxd2 {[%clk 00:09:58]} {[%emt 00:00:15]} 26. Rxd2 {[%clk 00:04:33]}
{[%emt 00:00:06]} Rfc8 {[%clk 00:09:53]} {[%emt 00:00:07]} 27. Qb2 {[%clk
00:04:31]} {[%emt 00:00:05]} Bxd2 {[%clk 00:09:52]} {[%emt 00:00:03]} 28. Qxd2
{[%clk 00:04:32]} Rc4 {[%clk 00:09:49]} {[%emt 00:00:04]} 29. bxa5 {[%clk
00:04:21]} {[%emt 00:00:14]} Qxd4 {[%clk 00:09:23]} {[%emt 00:00:27]} 30. Qe1
{[%clk 00:03:52]} {[%emt 00:00:31]} Rbc8 {[%clk 00:09:13]} {[%emt 00:00:12]} 31.
Rc1 {[%clk 00:03:13]} {[%emt 00:00:41]} Rxc1 {[%clk 00:09:10]} {[%emt
00:00:05]} 32. Nxc1 {[%emt 00:00:02]} Qa1 {[%clk 00:09:05]} {[%emt 00:00:05]}
33. Nd3 {[%clk 00:03:07]} {[%emt 00:00:11]} Qxe1+ {[%clk 00:09:03]} {[%emt
00:00:03]} 34. Nxe1 {[%clk 00:03:08]} {[%emt 00:00:02]} Rc1 {[%clk 00:09:03]}
{[%emt 00:00:02]} 35. Kf1 {[%clk 00:03:09]} {[%emt 00:00:01]} Ra1 {[%clk
00:09:03]} {[%emt 00:00:01]} 36. Ke2 {[%clk 00:03:07]} {[%emt 00:00:04]} Rxa3
{[%clk 00:09:03]} {[%emt 00:00:02]} 37. Nd3 {[%clk 00:03:03]} {[%emt 00:00:05]}
Rxa5 {[%clk 00:09:02]} {[%emt 00:00:04]} 38. Kd2 {[%clk 00:03:00]} {[%emt
00:00:05]} Ra2+ {[%clk 00:08:58]} {[%emt 00:00:05]} 39. Kc3 {[%clk 00:03:00]}
{[%emt 00:00:02]} Ra3+ {[%clk 00:08:59]} {[%emt 00:00:02]} 40. Kd2 {[%clk
00:03:00]} {[%emt 00:00:02]} Kf8 {[%clk 00:08:47]} {[%emt 00:00:14]} 41. g3
{[%clk 00:02:55]} {[%emt 00:00:07]} Ke7 {[%clk 00:08:44]} {[%emt 00:00:05]} 42.
f4 {[%clk 00:02:55]} {[%emt 00:00:02]} Kd7 {[%clk 00:08:36]} {[%emt 00:00:10]}
43. g4 {[%clk 00:02:47]} {[%emt 00:00:10]} Kc6 {[%clk 00:08:34]} {[%emt
00:00:03]} 44. h4 {[%clk 00:02:47]} {[%emt 00:00:03]} d4 {[%clk 00:08:25]}
{[%emt 00:00:11]} 45. Kc2 {[%clk 00:02:34]} {[%emt 00:00:15]} Rc3+ {[%clk
00:08:23]} {[%emt 00:00:03]} 46. Kd2 {[%clk 00:02:34]} {[%emt 00:00:02]} Kd5
{[%clk 00:08:22]} {[%emt 00:00:03]} 47. Nf2 {[%clk 00:02:26]} {[%emt 00:00:09]}
Rf3 {[%clk 00:08:17]} {[%emt 00:00:08]} 48. Nd3 {[%clk 00:02:26]} {[%emt
00:00:02]} Rxd3+ {[%clk 00:08:15]} {[%emt 00:00:04]} 49. Kxd3 {[%clk 00:02:26]}
{[%emt 00:00:03]} b4 {[%clk 00:08:16]} {[%emt 00:00:02]} 50. Ke4+ {[%emt
00:00:08]} Kxe5+ 51. Kxd4+ 0-1